[Event "Latvijas 2022. gada jauniešu čempionāta fināls"]
[Site "Riga, Latvia"]
[Date "2022.06.16"]
[Round "8.20"]
[White "Savicevs, Arsenijs"]
[Black "Francs, Marats"]
[Result "1/2-1/2"]
[TimeControl "3600+30"]
[WhiteElo "1961"]
[BlackElo "1882"]

1. e3 {[%clk 01:00:47]} {[%emt 00:00:13]} Nf6 {[%clk 01:00:38]} {[%emt
00:00:22]} 2. Nf3 {[%clk 01:00:54]} {[%emt 00:00:22]} e6 {[%clk 01:00:24]}
{[%emt 00:00:45]} 3. c4 {[%clk 01:01:08]} {[%emt 00:00:16]} d5 {[%clk
01:00:43]} {[%emt 00:00:11]} 4. b3 {[%clk 01:01:28]} {[%emt 00:00:09]} c5
{[%clk 01:00:56]} {[%emt 00:00:17]} 5. Bb2 {[%clk 01:01:50]} {[%emt 00:00:08]}
Nc6 {[%clk 01:00:52]} {[%emt 00:00:35]} 6. cxd5 {[%clk 01:01:56]} {[%emt
00:00:23]} exd5 {[%clk 01:00:55]} {[%emt 00:00:27]} 7. Bb5 {[%clk 01:02:16]}
{[%emt 00:00:11]} Bd7 {[%clk 00:59:33]} {[%emt 00:01:51]} 8. O-O {[%clk
01:02:14]} {[%emt 00:00:32]} a6 {[%clk 00:58:55]} {[%emt 00:01:10]} 9. Bxc6
{[%clk 01:02:31]} {[%emt 00:00:12]} bxc6 {[%clk 00:53:15]} {[%emt 00:06:10]} 10.
d4 {[%clk 01:01:52]} {[%emt 00:01:09]} Bd6 {[%clk 00:45:36]} {[%emt 00:08:08]}
11. dxc5 {[%clk 01:01:28]} {[%emt 00:00:54]} Bxc5 {[%clk 00:45:53]} {[%emt
00:00:13]} 12. Ne5 {[%clk 01:01:43]} {[%emt 00:00:15]} O-O {[%clk 00:39:21]}
{[%emt 00:07:02]} 13. Qc2 {[%clk 00:51:54]} {[%emt 00:10:19]} Bd6 {[%clk
00:32:19]} {[%emt 00:07:33]} 14. Nxd7 {[%clk 00:49:35]} {[%emt 00:02:49]} Qxd7
{[%clk 00:29:49]} {[%emt 00:03:00]} 15. Nd2 {[%clk 00:46:25]} {[%emt 00:03:40]}
Ng4 {[%clk 00:23:12]} {[%emt 00:07:07]} 16. h3 {[%clk 00:42:34]} {[%emt
00:04:20]} Ne5 {[%clk 00:22:58]} {[%emt 00:00:45]} 17. e4 {[%clk 00:42:47]}
{[%emt 00:00:17]} Ng6 {[%clk 00:19:11]} {[%emt 00:04:17]} 18. Qd3 {[%clk
00:27:02]} {[%emt 00:16:14]} Be5 {[%clk 00:15:06]} {[%emt 00:04:35]} 19. Bxe5
{[%clk 00:26:45]} {[%emt 00:00:46]} Nxe5 {[%clk 00:14:28]} {[%emt 00:01:10]} 20.
Qd4 {[%clk 00:24:59]} {[%emt 00:02:14]} f6 {[%clk 00:12:21]} {[%emt 00:02:39]}
21. Rfd1 {[%clk 00:17:06]} {[%emt 00:08:21]} Rfd8 {[%clk 00:11:20]} {[%emt
00:01:33]} 22. Nf1 {[%clk 00:15:52]} {[%emt 00:01:43]} dxe4 {[%clk 00:08:58]}
{[%emt 00:02:52]} 23. Qxe4 {[%clk 00:15:42]} {[%emt 00:00:40]} Qc7 {[%clk
00:05:26]} {[%emt 00:04:03]} 24. Rac1 {[%clk 00:14:22]} {[%emt 00:02:19]} Rxd1
{[%clk 00:05:05]} {[%emt 00:01:23]} 25. Rxd1 {[%clk 00:14:50]} {[%emt
00:00:01]} h6 {[%clk 00:02:01]} {[%emt 00:03:33]} 26. Ne3 {[%clk 00:13:27]}
{[%emt 00:01:53]} Rd8 {[%clk 00:01:42]} {[%emt 00:00:49]} 27. Rxd8+ {[%clk
00:07:01]} {[%emt 00:06:56]} Qxd8 {[%clk 00:02:12]} {[%emt 00:00:01]} 28. Nc4
{[%clk 00:07:30]} {[%emt 00:00:02]} Qd1+ {[%clk 00:01:20]} {[%emt 00:01:22]} 29.
Kh2 {[%clk 00:07:57]} {[%emt 00:00:02]} Qf1 {[%clk 00:01:19]} {[%emt 00:00:31]}
30. Nxe5 {[%clk 00:05:26]} {[%emt 00:03:01]} fxe5 {[%clk 00:01:48]} 31. Kg3
{[%clk 00:05:34]} {[%emt 00:00:22]} Qb5 {[%clk 00:01:34]} {[%emt 00:00:43]} 32.
Qc4+ {[%clk 00:01:44]} {[%emt 00:04:21]} Qxc4 {[%clk 00:01:56]} {[%emt
00:00:08]} 33. bxc4 {[%clk 00:02:13]} {[%emt 00:00:02]} Kf7 {[%clk 00:02:14]}
{[%emt 00:00:11]} 34. Kf3 {[%clk 00:02:30]} {[%emt 00:00:13]} Kf6 {[%clk
00:02:31]} {[%emt 00:00:13]} 35. Ke4 {[%clk 00:01:13]} {[%emt 00:01:47]} Ke6
{[%clk 00:02:55]} {[%emt 00:00:06]} 36. h4 {[%clk 00:01:28]} {[%emt 00:00:15]}
g6 {[%clk 00:02:18]} {[%emt 00:01:07]} 37. f3 {[%clk 00:01:22]} {[%emt
00:00:35]} Kd6 {[%clk 00:01:43]} {[%emt 00:01:06]} 38. Kd3 {[%clk 00:00:38]}
{[%emt 00:01:15]} Kc5 {[%clk 00:01:31]} {[%emt 00:00:42]} 39. Kc3 {[%clk
00:01:01]} {[%emt 00:00:07]} 1/2-1/2

[Event "Latvijas 2022. gada jauniešu čempionāta fināls"]
[Site "Riga, Latvia"]
[Date "2022.06.16"]
[Round "8.21"]
[White "Jonins, Dmitrijs"]
[Black "Freibergs, Andrejs"]
[Result "0-1"]
[TimeControl "3600+30"]
[WhiteElo "1503"]
[BlackElo "1526"]

1. e4 {[%clk 01:00:47]} {[%emt 00:00:13]} e6 {[%clk 01:00:50]} {[%emt
00:00:11]} 2. d4 {[%clk 01:01:06]} {[%emt 00:00:10]} d5 {[%clk 01:01:15]}
{[%emt 00:00:04]} 3. exd5 {[%clk 01:01:31]} {[%emt 00:00:06]} exd5 {[%clk
01:01:42]} {[%emt 00:00:03]} 4. Nf3 {[%clk 01:01:56]} {[%emt 00:00:05]} Nf6
{[%clk 01:02:07]} {[%emt 00:00:05]} 5. Bd3 {[%clk 01:02:19]} {[%emt 00:00:07]}
c5 {[%clk 01:01:56]} {[%emt 00:00:41]} 6. c3 {[%clk 00:58:58]} {[%emt
00:03:52]} c4 {[%clk 01:01:37]} {[%emt 00:00:49]} 7. Bc2 {[%clk 00:57:33]}
{[%emt 00:01:54]} Bd6 {[%clk 01:01:53]} {[%emt 00:00:13]} 8. O-O {[%clk
00:57:37]} {[%emt 00:00:26]} O-O {[%clk 01:02:17]} {[%emt 00:00:07]} 9. Bg5
{[%clk 00:51:59]} {[%emt 00:06:09]} Nc6 {[%clk 00:56:42]} {[%emt 00:06:05]} 10.
h3 {[%clk 00:47:49]} {[%emt 00:04:39]} h6 {[%clk 00:51:33]} {[%emt 00:05:39]}
11. Bh4 {[%clk 00:47:01]} {[%emt 00:01:18]} g5 {[%clk 00:49:12]} {[%emt
00:02:51]} 12. Bg3 {[%clk 00:45:53]} {[%emt 00:01:37]} Ne4 {[%clk 00:48:38]}
{[%emt 00:01:05]} 13. Bxe4 {[%clk 00:42:49]} {[%emt 00:03:35]} dxe4 {[%clk
00:48:27]} {[%emt 00:00:40]} 14. Ne5 {[%clk 00:42:50]} {[%emt 00:00:28]} f5
{[%clk 00:45:00]} {[%emt 00:03:58]} 15. f4 {[%clk 00:27:52]} {[%emt 00:15:28]}
Bxe5 {[%clk 00:40:12]} {[%emt 00:05:18]} 16. dxe5 {[%clk 00:22:35]} {[%emt
00:05:47]} Qxd1 {[%clk 00:39:59]} {[%emt 00:00:43]} 17. Rxd1 {[%clk 00:22:54]}
{[%emt 00:00:12]} Be6 {[%clk 00:40:11]} {[%emt 00:00:17]} 18. Na3 {[%clk
00:22:07]} {[%emt 00:01:16]} Rad8 {[%clk 00:39:13]} {[%emt 00:01:28]} 19. Nb5
{[%clk 00:21:40]} {[%emt 00:00:57]} Rd3 {[%clk 00:39:00]} {[%emt 00:00:44]} 20.
Kh2 {[%clk 00:17:59]} {[%emt 00:04:10]} Ne7 {[%clk 00:30:50]} {[%emt 00:08:39]}
21. Nd4 {[%clk 00:17:16]} {[%emt 00:01:14]} Kf7 {[%clk 00:30:51]} {[%emt
00:00:29]} 22. b3 {[%clk 00:12:19]} {[%emt 00:05:28]} a6 {[%clk 00:26:36]}
{[%emt 00:04:45]} 23. bxc4 {[%clk 00:10:16]} {[%emt 00:02:32]} Bxc4 {[%clk
00:25:53]} {[%emt 00:01:14]} 24. Rdb1 {[%clk 00:08:33]} {[%emt 00:02:12]} Bd5
{[%clk 00:22:17]} {[%emt 00:04:06]} 25. Rb6 {[%clk 00:06:58]} {[%emt 00:02:05]}
Bc6 {[%clk 00:19:37]} {[%emt 00:03:11]} 26. Rf1 {[%clk 00:05:06]} {[%emt
00:02:21]} Kg6 {[%clk 00:15:37]} {[%emt 00:04:30]} 27. Ne6 {[%clk 00:05:02]}
{[%emt 00:00:35]} Re8 {[%clk 00:15:35]} {[%emt 00:00:32]} 28. Nd4 {[%clk
00:01:16]} {[%emt 00:04:16]} Nd5 {[%clk 00:13:22]} {[%emt 00:02:43]} 29. Rb3
{[%clk 00:01:12]} {[%emt 00:00:32]} gxf4 {[%clk 00:10:36]} {[%emt 00:03:18]} 30.
Bxf4 {[%clk 00:01:27]} {[%emt 00:00:15]} Nxf4 {[%clk 00:11:01]} {[%emt
00:00:06]} 31. Rxf4 {[%clk 00:01:52]} {[%emt 00:00:04]} Rxe5 {[%clk 00:11:25]}
{[%emt 00:00:06]} 32. g4 {[%clk 00:01:20]} {[%emt 00:01:03]} Rd2+ {[%clk
00:10:22]} {[%emt 00:01:31]} 33. Kg3 {[%clk 00:01:16]} {[%emt 00:00:35]} e3
{[%clk 00:10:17]} {[%emt 00:00:35]} 34. gxf5+ {[%clk 00:01:15]} {[%emt
00:00:31]} Kf6 {[%clk 00:10:09]} {[%emt 00:00:37]} 35. Rh4 {[%clk 00:00:49]}
{[%emt 00:00:57]} Rg2+ {[%clk 00:09:41]} {[%emt 00:00:58]} 36. Kf4 {[%clk
00:01:12]} {[%emt 00:00:07]} Re4+ {[%clk 00:09:51]} {[%emt 00:00:20]} 37. Kf3
{[%clk 00:01:39]} {[%emt 00:00:03]} Rxh4+ {[%clk 00:10:10]} {[%emt 00:00:11]}
38. Nxc6 {[%clk 00:02:03]} {[%emt 00:00:06]} Rxa2 {[%clk 00:09:14]} {[%emt
00:01:26]} 39. Nd4 {[%clk 00:02:23]} {[%emt 00:00:10]} b5 {[%clk 00:06:48]}
{[%emt 00:02:56]} 40. Kxe3 {[%clk 00:02:38]} {[%emt 00:00:14]} Rxh3+ {[%clk
00:07:12]} {[%emt 00:00:06]} 41. Ke4 {[%clk 00:02:59]} {[%emt 00:00:08]} Rh4+
{[%clk 00:07:02]} {[%emt 00:00:42]} 42. Kd5 {[%clk 00:03:16]} {[%emt 00:00:12]}
Rh1 {[%clk 00:06:36]} {[%emt 00:00:57]} 43. c4 {[%clk 00:03:24]} {[%emt
00:00:22]} Rd1 {[%clk 00:05:37]} {[%emt 00:01:28]} 44. Kc5 {[%clk 00:03:22]}
{[%emt 00:00:33]} 0-1

[Event "Latvijas 2022. gada jauniešu čempionāta fināls"]
[Site "Riga, Latvia"]
[Date "2022.06.16"]
[Round "8.22"]
[White "Adamovics, Aleksejs"]
[Black "Zajakins, Artjoms"]
[Result "1/2-1/2"]
[TimeControl "3600+30"]
[WhiteElo "1922"]
[BlackElo "1596"]

1. Nf3 {[%clk 00:59:25]} {[%emt 00:01:34]} Nf6 {[%clk 01:00:32]} {[%emt
00:00:28]} 2. g3 {[%clk 00:59:26]} {[%emt 00:00:30]} g6 {[%clk 01:00:29]}
{[%emt 00:00:33]} 3. Bg2 {[%clk 00:59:50]} {[%emt 00:00:06]} Bg7 {[%clk
01:00:40]} {[%emt 00:00:19]} 4. O-O {[%clk 01:00:15]} {[%emt 00:00:04]} d5
{[%clk 01:00:35]} {[%emt 00:00:34]} 5. d4 {[%clk 01:00:36]} {[%emt 00:00:11]}
O-O {[%clk 01:00:54]} {[%emt 00:00:10]} 6. c4 {[%clk 01:00:59]} {[%emt
00:00:07]} c6 {[%clk 01:00:38]} {[%emt 00:00:47]} 7. cxd5 {[%clk 01:01:20]}
{[%emt 00:00:09]} cxd5 {[%clk 01:00:56]} {[%emt 00:00:11]} 8. Ne5 {[%clk
01:01:48]} {[%emt 00:00:02]} Nc6 {[%clk 00:50:17]} {[%emt 00:11:09]} 9. Nxc6
{[%clk 01:01:09]} {[%emt 00:01:10]} bxc6 {[%clk 00:50:32]} {[%emt 00:00:15]} 10.
Nc3 {[%clk 01:01:38]} Bf5 {[%clk 00:47:09]} {[%emt 00:03:53]} 11. b3 {[%clk
00:54:12]} {[%emt 00:07:55]} c5 {[%clk 00:42:46]} {[%emt 00:04:53]} 12. Be3
{[%clk 00:54:16]} {[%emt 00:00:27]} Ne4 {[%clk 00:39:09]} {[%emt 00:04:07]} 13.
Rc1 {[%clk 00:45:35]} {[%emt 00:09:11]} Nxc3 {[%clk 00:25:53]} {[%emt
00:13:45]} 14. Rxc3 {[%clk 00:45:56]} {[%emt 00:00:09]} cxd4 {[%clk 00:26:17]}
{[%emt 00:00:06]} 15. Bxd4 {[%clk 00:46:22]} {[%emt 00:00:04]} e5 {[%clk
00:25:24]} {[%emt 00:01:23]} 16. Bc5 {[%clk 00:43:55]} {[%emt 00:02:57]} e4
{[%clk 00:25:28]} {[%emt 00:00:26]} 17. Bd4 {[%clk 00:42:54]} {[%emt 00:01:31]}
Be6 {[%clk 00:24:25]} {[%emt 00:01:34]} 18. f3 {[%clk 00:29:56]} {[%emt
00:13:28]} f5 {[%clk 00:20:37]} {[%emt 00:04:17]} 19. Bxg7 {[%clk 00:28:11]}
{[%emt 00:02:15]} Kxg7 {[%clk 00:20:45]} {[%emt 00:00:22]} 20. Qd4+ {[%clk
00:26:43]} {[%emt 00:01:58]} Qf6 {[%clk 00:14:19]} {[%emt 00:06:55]} 21. Qxf6+
{[%clk 00:17:34]} {[%emt 00:09:40]} Rxf6 {[%clk 00:13:46]} {[%emt 00:01:03]} 22.
Rfc1 {[%clk 00:17:16]} {[%emt 00:00:49]} Rf7 {[%clk 00:13:08]} {[%emt
00:01:07]} 23. e3 {[%clk 00:16:41]} {[%emt 00:01:05]} Rd7 {[%clk 00:11:17]}
{[%emt 00:02:22]} 24. Rc7 {[%clk 00:13:49]} {[%emt 00:03:21]} Rad8 {[%clk
00:11:25]} {[%emt 00:00:22]} 25. Bf1 {[%clk 00:13:08]} {[%emt 00:01:10]} Kf6
{[%clk 00:11:02]} {[%emt 00:00:53]} 26. Kf2 {[%clk 00:11:45]} {[%emt 00:01:54]}
h6 {[%clk 00:09:24]} {[%emt 00:02:09]} 27. Bb5 {[%clk 00:11:26]} {[%emt
00:00:49]} Rxc7 {[%clk 00:09:27]} {[%emt 00:00:27]} 28. Rxc7 {[%clk 00:11:50]}
{[%emt 00:00:05]} Rc8 {[%clk 00:09:45]} {[%emt 00:00:12]} 29. Rxa7 {[%clk
00:09:38]} {[%emt 00:02:43]} Rc2+ {[%clk 00:10:07]} {[%emt 00:00:07]} 30. Be2
{[%clk 00:09:52]} {[%emt 00:00:15]} Rb2 {[%clk 00:08:42]} {[%emt 00:01:56]} 31.
Rc7 {[%clk 00:05:13]} {[%emt 00:05:10]} Rxa2 {[%clk 00:08:45]} {[%emt
00:00:25]} 32. b4 {[%clk 00:05:40]} {[%emt 00:00:04]} Rb2 {[%clk 00:08:26]}
{[%emt 00:00:48]} 33. b5 {[%clk 00:06:03]} {[%emt 00:00:08]} Bf7 {[%clk
00:04:29]} {[%emt 00:04:28]} 34. Rc6+ {[%clk 00:03:21]} {[%emt 00:03:12]} Ke7
{[%clk 00:04:43]} {[%emt 00:00:14]} 35. Ke1 {[%clk 00:02:40]} {[%emt 00:01:10]}
Rb1+ {[%clk 00:04:39]} {[%emt 00:00:34]} 36. Kf2 {[%clk 00:02:11]} {[%emt
00:01:01]} Rb2 {[%clk 00:05:02]} {[%emt 00:00:07]} 37. fxe4 {[%clk 00:02:00]}
{[%emt 00:00:41]} dxe4 {[%clk 00:04:03]} {[%emt 00:01:29]} 38. Ke1 {[%clk
00:02:04]} {[%emt 00:00:26]} Rb1+ {[%clk 00:04:16]} {[%emt 00:00:16]} 39. Kd2
{[%clk 00:02:17]} {[%emt 00:00:12]} Rb2+ {[%clk 00:03:22]} {[%emt 00:01:29]} 40.
Ke1 {[%clk 00:01:55]} {[%emt 00:00:53]} Rb1+ {[%clk 00:03:30]} {[%emt
00:00:22]} 41. Kd2 {[%clk 00:01:27]} {[%emt 00:00:58]} Rb2+ {[%clk 00:03:45]}
{[%emt 00:00:15]} 42. Kd1 {[%clk 00:01:20]} {[%emt 00:00:36]} Be8 {[%clk
00:02:49]} {[%emt 00:01:26]} 43. Rb6 {[%clk 00:01:18]} {[%emt 00:00:33]} g5
{[%clk 00:01:45]} {[%emt 00:01:33]} 44. Rb8 {[%clk 00:00:57]} {[%emt 00:00:52]}
Bd7 {[%clk 00:01:30]} {[%emt 00:00:45]} 45. b6 {[%clk 00:00:40]} {[%emt
00:00:47]} Kd6 {[%clk 00:01:23]} {[%emt 00:00:37]} 46. Rh8 {[%clk 00:00:44]}
{[%emt 00:00:26]} Rxb6 {[%clk 00:01:29]} {[%emt 00:00:24]} 47. Rxh6+ {[%clk
00:01:13]} {[%emt 00:00:02]} Kc5 {[%clk 00:01:33]} {[%emt 00:00:22]} 48. Rxb6
{[%clk 00:01:39]} {[%emt 00:00:07]} Kxb6 {[%clk 00:01:45]} {[%emt 00:00:19]} 49.
h4 {[%clk 00:02:01]} {[%emt 00:00:07]} gxh4 {[%clk 00:01:49]} {[%emt 00:00:25]}
50. gxh4 {[%clk 00:02:25]} {[%emt 00:00:08]} Be8 {[%clk 00:02:02]} {[%emt
00:00:16]} 51. h5 {[%clk 00:01:34]} {[%emt 00:01:20]} Kc5 {[%clk 00:02:24]}
{[%emt 00:00:08]} 52. h6 {[%clk 00:01:16]} {[%emt 00:00:49]} Bg6 {[%clk
00:02:46]} {[%emt 00:00:08]} 53. Ke1 {[%clk 00:01:43]} {[%emt 00:00:03]} Kd5
{[%clk 00:01:32]} {[%emt 00:01:44]} 54. Kf2 {[%clk 00:01:41]} {[%emt 00:00:32]}
Ke5 {[%clk 00:01:54]} {[%emt 00:00:07]} 55. Kg3 {[%clk 00:01:31]} {[%emt
00:00:41]} Bh7 {[%clk 00:01:43]} {[%emt 00:00:41]} 56. Bh5 {[%clk 00:01:48]}
{[%emt 00:00:13]} Kf6 {[%clk 00:01:57]} {[%emt 00:00:16]} 57. Kf4 {[%clk
00:02:01]} {[%emt 00:00:17]} Bg8 {[%clk 00:02:14]} {[%emt 00:00:12]} 58. Be8
{[%clk 00:02:12]} {[%emt 00:00:20]} Bh7 {[%clk 00:02:18]} {[%emt 00:00:25]} 59.
Bd7 {[%clk 00:02:27]} {[%emt 00:00:10]} Bg6 {[%clk 00:02:33]} {[%emt 00:00:20]}
60. Bb5 {[%emt 00:00:58]} Bh7 {[%clk 00:02:25]} {[%emt 00:00:25]} 61. Bc4
{[%clk 00:02:22]} {[%emt 00:00:21]} Kg6 {[%clk 00:02:11]} {[%emt 00:00:45]} 62.
Be6 {[%clk 00:02:37]} {[%emt 00:00:14]} Kxh6 {[%clk 00:02:12]} {[%emt
00:00:29]} 63. Bxf5 {[%clk 00:03:03]} {[%emt 00:00:04]} Bg8 {[%clk 00:01:50]}
{[%emt 00:00:52]} 64. Kxe4 {[%clk 00:03:12]} {[%emt 00:00:21]} Kg7 {[%clk
00:02:03]} {[%emt 00:00:16]} 65. Ke5 {[%clk 00:03:21]} {[%emt 00:00:22]} Kf8
{[%clk 00:02:11]} {[%emt 00:00:22]} 66. Kd6 {[%clk 00:03:26]} {[%emt 00:00:23]}
Bb3 {[%clk 00:01:55]} {[%emt 00:00:47]} 67. Bd3 {[%clk 00:03:25]} {[%emt
00:00:32]} Bf7 {[%clk 00:01:51]} {[%emt 00:00:33]} 68. Bc2 {[%clk 00:03:19]}
{[%emt 00:00:35]} Bh5 {[%clk 00:01:56]} {[%emt 00:00:27]} 69. Be4 {[%clk
00:03:30]} {[%emt 00:00:19]} Bg4 {[%clk 00:02:09]} {[%emt 00:00:17]} 70. Bd5
{[%clk 00:03:39]} {[%emt 00:00:20]} Bd1 {[%clk 00:01:57]} {[%emt 00:00:42]} 71.
e4 {[%clk 00:03:50]} {[%emt 00:00:20]} Bf3 {[%clk 00:02:02]} {[%emt 00:00:25]}
72. e5 {[%clk 00:04:11]} {[%emt 00:00:10]} Bxd5 {[%clk 00:02:04]} {[%emt
00:00:28]} 73. Kxd5 {[%clk 00:04:32]} {[%emt 00:00:09]} Ke7 {[%clk 00:02:22]}
{[%emt 00:00:11]} 74. Kd4 {[%clk 00:04:55]} {[%emt 00:00:06]} Ke6 {[%clk
00:02:45]} {[%emt 00:00:08]} 75. Ke4 {[%clk 00:05:21]} {[%emt 00:00:04]} Ke7
{[%clk 00:03:09]} {[%emt 00:00:06]} 76. Kf5 {[%clk 00:05:47]} {[%emt 00:00:04]}
Kf7 {[%clk 00:03:30]} {[%emt 00:00:09]} 77. e6+ {[%clk 00:06:13]} {[%emt
00:00:04]} Ke7 {[%clk 00:03:54]} {[%emt 00:00:06]} 78. Ke5 {[%clk 00:06:39]}
{[%emt 00:00:05]} Ke8 {[%clk 00:04:17]} {[%emt 00:00:06]} 79. Kf6 {[%clk
00:07:02]} {[%emt 00:00:07]} Kf8 {[%clk 00:04:40]} {[%emt 00:00:07]} 80. Kg5
{[%clk 00:07:16]} {[%emt 00:00:16]} Ke7 {[%clk 00:04:56]} {[%emt 00:00:14]} 81.
Kf5 {[%clk 00:07:43]} {[%emt 00:00:03]} Ke8 {[%clk 00:05:10]} {[%emt 00:00:15]}
82. Kf6 {[%clk 00:08:11]} {[%emt 00:00:03]} Kf8 {[%clk 00:05:31]} {[%emt
00:00:09]} 83. e7+ {[%clk 00:08:40]} {[%emt 00:00:01]} Ke8 {[%clk 00:05:51]}
{[%emt 00:00:10]} 84. Ke6 {[%clk 00:09:08]} {[%emt 00:00:01]} 1/2-1/2